[Event "*** Titled Tuesday Blitz"]
[Site "Chess.com"]
[Date "2019.04.02"]
[Round "3"]
[White "nabukatnezarr"]
[Black "bubacik"]
[Result "1-0"]
[WhiteElo "2576"]
[BlackElo "2599"]
[TimeControl "180+2"]
[EndTime "14:34:10 PDT"]
[Termination "nabukatnezarr won by resignation"]

1. e4 {[%clk 0:03:01.9]} 1... e5 {[%clk 0:02:59.6]} 2. Nc3 {[%clk 0:03:02.5]}
2... Nc6 {[%clk 0:02:51.2]} 3. g3 {[%clk 0:03:03.6]} 3... g6 {[%clk 0:02:39.4]}
4. Bg2 {[%clk 0:03:04.2]} 4... Bg7 {[%clk 0:02:40.8]} 5. Nge2 {[%clk 0:03:05.4]}
5... Nge7 {[%clk 0:02:41.8]} 6. O-O {[%clk 0:03:06.5]} 6... O-O {[%clk
0:02:29.6]} 7. f4 {[%clk 0:03:04.2]} 7... d6 {[%clk 0:02:16.5]} 8. h3 {[%clk
0:03:05.1]} 8... f5 {[%clk 0:02:14.2]} 9. d3 {[%clk 0:03:06.2]} 9... exf4 {[%clk
0:02:05.9]} 10. Bxf4 {[%clk 0:02:54]} 10... fxe4 {[%clk 0:02:05.7]} 11. Nxe4
{[%clk 0:02:47.1]} 11... h6 {[%clk 0:01:58.6]} 12. c3 {[%clk 0:02:40.1]} 12...
Be6 {[%clk 0:01:55.7]} 13. Qd2 {[%clk 0:02:32]} 13... Kh7 {[%clk 0:01:48.7]} 14.
g4 {[%clk 0:02:21.5]} 14... Rf7 {[%clk 0:01:41.8]} 15. g5 {[%clk 0:02:02.1]}
15... h5 {[%clk 0:01:34.5]} 16. Nf6+ {[%clk 0:02:02.6]} 16... Bxf6 {[%clk
0:01:34.4]} 17. gxf6 {[%clk 0:02:04.5]} 17... Rxf6 {[%clk 0:01:36.2]} 18. Bg5
{[%clk 0:02:03.5]} 18... Rxf1+ {[%clk 0:01:35.8]} 19. Rxf1 {[%clk 0:02:05.4]}
19... Qg8 {[%clk 0:01:32]} 20. Nf4 {[%clk 0:01:53.7]} 20... Rf8 {[%clk
0:01:33.5]} 21. Re1 {[%clk 0:01:41.6]} 21... Ne5 {[%clk 0:01:31.3]} 22. Bxe7
{[%clk 0:01:39.5]} 22... Rf5 {[%clk 0:01:27]} 23. d4 {[%clk 0:01:14.3]} 23...
Nc4 {[%clk 0:01:16.2]} 24. Qe2 {[%clk 0:01:07.5]} 24... Bf7 {[%clk 0:01:12.6]}
25. Ne6 {[%clk 0:01:02.4]} 25... Bxe6 {[%clk 0:01:02.8]} 26. Qxe6 {[%clk
0:01:03.1]} 26... Qxe6 {[%clk 0:01:04.2]} 27. Rxe6 {[%clk 0:01:04.4]} 27... Nxb2
{[%clk 0:01:05.4]} 28. Be4 {[%clk 0:01:01.3]} 28... Ra5 {[%clk 0:01:00.8]} 29.
Rxg6 {[%clk 0:00:58.9]} 29... Nd1 {[%clk 0:00:53.5]} 30. Rg5+ {[%clk 0:00:55.8]}
1-0

[Event "*** Titled Tuesday Blitz"]
[Site "Chess.com"]
[Date "2019.04.02"]
[Round "3"]
[White "kleinebeer98"]
[Black "Guenplen"]
[Result "0-1"]
[WhiteElo "2733"]
[BlackElo "2910"]
[TimeControl "180+2"]
[EndTime "14:34:17 PDT"]
[Termination "Guenplen won by resignation"]

1. e4 {[%clk 0:03:01.9]} 1... c5 {[%clk 0:03:00.7]} 2. Nf3 {[%clk 0:03:03]} 2...
e6 {[%clk 0:03:02]} 3. d4 {[%clk 0:03:04]} 3... cxd4 {[%clk 0:03:03.9]} 4. Nxd4
{[%clk 0:03:05.9]} 4... Nc6 {[%clk 0:03:04.9]} 5. Nc3 {[%clk 0:03:07.5]} 5... a6
{[%clk 0:03:05.7]} 6. g4 {[%clk 0:02:53]} 6... Nxd4 {[%clk 0:03:04.6]} 7. Qxd4
{[%clk 0:02:53.7]} 7... b5 {[%clk 0:03:06.5]} 8. Bg2 {[%clk 0:02:53.6]} 8... Bb7
{[%clk 0:03:07.3]} 9. O-O {[%clk 0:02:43.9]} 9... Ne7 {[%clk 0:03:08.3]} 10. Bg5
{[%clk 0:02:38.1]} 10... f6 {[%clk 0:03:06.7]} 11. Be3 {[%clk 0:02:36.7]} 11...
Nc6 {[%clk 0:02:58.8]} 12. Qd1 {[%clk 0:02:35.8]} 12... Ne5 {[%clk 0:02:56]} 13.
Bd4 {[%clk 0:02:28.7]} 13... Rc8 {[%clk 0:02:35.5]} 14. f4 {[%clk 0:02:06.9]}
14... Nc4 {[%clk 0:02:35]} 15. Qc1 {[%clk 0:02:06.5]} 15... Qc7 {[%clk
0:02:31.8]} 16. Kh1 {[%clk 0:01:45.8]} 16... Bc5 {[%clk 0:02:30.1]} 17. Ne2
{[%clk 0:01:44.7]} 17... O-O {[%clk 0:02:23.6]} 18. c3 {[%clk 0:01:36.4]} 18...
e5 {[%clk 0:02:17.3]} 19. Bxc5 {[%clk 0:01:28.4]} 19... Qxc5 {[%clk 0:02:18]}
20. Ng3 {[%clk 0:01:07.5]} 20... Ne3 {[%clk 0:02:10.7]} 21. h3 {[%clk
0:00:54.6]} 21... Nxf1 {[%clk 0:02:05.4]} 22. Qxf1 {[%clk 0:00:56.1]} 22... d5
{[%clk 0:01:58.9]} 23. Re1 {[%clk 0:00:43]} 23... dxe4 {[%clk 0:01:48.3]} 24.
Bxe4 {[%clk 0:00:30.9]} 24... Bxe4+ {[%clk 0:01:47.2]} 25. Nxe4 {[%clk
0:00:32.8]} 25... Qd5 {[%clk 0:01:43.8]} 26. Qf3 {[%clk 0:00:33.8]} 26... Rcd8
{[%clk 0:01:38]} 27. b3 {[%clk 0:00:23.9]} 27... f5 {[%clk 0:01:30.9]} 28. gxf5
{[%clk 0:00:23.9]} 28... Rxf5 {[%clk 0:01:29.4]} 29. Rg1 {[%clk 0:00:20.4]}
29... Rxf4 {[%clk 0:01:22.2]} 30. Qxf4 {[%clk 0:00:21.8]} 30... exf4 {[%clk
0:01:21.9]} 0-1

[Event "*** Titled Tuesday Blitz"]
[Site "Chess.com"]
[Date "2019.04.02"]
[Round "3"]
[White "DACF2905"]
[Black "LaughingTiger"]
[Result "0-1"]
[WhiteElo "2069"]
[BlackElo "2172"]
[TimeControl "180+2"]
[EndTime "14:34:19 PDT"]
[Termination "LaughingTiger won by resignation"]

1. e4 {[%clk 0:03:01.9]} 1... c5 {[%clk 0:02:53.4]} 2. Nf3 {[%clk 0:03:01.8]}
2... e6 {[%clk 0:02:52.4]} 3. d4 {[%clk 0:03:02.7]} 3... cxd4 {[%clk 0:02:52.1]}
4. Nxd4 {[%clk 0:03:04.6]} 4... a6 {[%clk 0:02:52.8]} 5. Bd3 {[%clk 0:03:04.1]}
5... Qc7 {[%clk 0:02:53.7]} 6. Qe2 {[%clk 0:03:04.5]} 6... Nf6 {[%clk 0:02:52]}
7. c4 {[%clk 0:03:03.4]} 7... d6 {[%clk 0:02:50.1]} 8. Nc3 {[%clk 0:03:03.4]}
8... Nbd7 {[%clk 0:02:50.7]} 9. O-O {[%clk 0:03:02.3]} 9... Be7 {[%clk
0:02:50.6]} 10. Kh1 {[%clk 0:03:00.7]} 10... b6 {[%clk 0:02:51.1]} 11. Be3
{[%clk 0:02:58.5]} 11... Bb7 {[%clk 0:02:52.5]} 12. b4 {[%clk 0:02:44.4]} 12...
Ne5 {[%clk 0:02:51.5]} 13. f4 {[%clk 0:02:42.1]} 13... Nxd3 {[%clk 0:02:52]} 14.
Qxd3 {[%clk 0:02:42.7]} 14... O-O {[%clk 0:02:53.6]} 15. Rac1 {[%clk 0:02:20.9]}
15... Rfd8 {[%clk 0:02:48.3]} 16. f5 {[%clk 0:02:13.8]} 16... e5 {[%clk
0:02:41.8]} 17. Nf3 {[%clk 0:02:14.6]} 17... Rab8 {[%clk 0:02:34.6]} 18. h3
{[%clk 0:02:08.9]} 18... Rdc8 {[%clk 0:02:21.7]} 19. Nd5 {[%clk 0:02:09.1]}
19... Bxd5 {[%clk 0:02:19.7]} 20. cxd5 {[%clk 0:02:09.6]} 20... Qb7 {[%clk
0:02:21]} 21. Rxc8+ {[%clk 0:02:05.6]} 21... Rxc8 {[%clk 0:02:22.9]} 22. Rc1
{[%clk 0:02:06]} 22... Rxc1+ {[%clk 0:02:23.2]} 23. Bxc1 {[%clk 0:02:06.9]}
23... Qc8 {[%clk 0:02:23.3]} 24. Be3 {[%clk 0:02:06.4]} 24... b5 {[%clk
0:02:24.5]} 25. Bd2 {[%clk 0:01:56.4]} 25... Qc4 {[%clk 0:02:18]} 26. Qe3 {[%clk
0:01:47.3]} 26... Qxe4 {[%clk 0:02:01]} 27. Qa7 {[%clk 0:01:47.8]} 27... Bf8
{[%clk 0:02:00.3]} 28. Qxa6 {[%clk 0:01:46.1]} 28... Qxd5 {[%clk 0:01:59.1]} 29.
Qc8 {[%clk 0:01:38.1]} 29... e4 {[%clk 0:01:56.6]} 30. Ng5 {[%clk 0:00:57.6]}
30... Qxd2 {[%clk 0:01:55.1]} 31. Ne6 {[%clk 0:00:58.6]} 31... fxe6 {[%clk
0:01:50.3]} 32. Qxe6+ {[%clk 0:00:52.3]} 32... Kh8 {[%clk 0:01:50.7]} 33. Qf7
{[%clk 0:00:53.2]} 33... Qc1+ {[%clk 0:01:49.3]} 34. Kh2 {[%clk 0:00:51.4]}
34... Qf4+ {[%clk 0:01:51.2]} 35. Kh1 {[%clk 0:00:52.3]} 35... e3 {[%clk
0:01:41]} 36. Qxf8+ {[%clk 0:00:52.3]} 36... Ng8 {[%clk 0:01:42.4]} 37. g3
{[%clk 0:00:38]} 37... Qf1+ {[%clk 0:01:41]} 38. Kh2 {[%clk 0:00:38.7]} 38...
Qf2+ {[%clk 0:01:42.9]} 39. Kh1 {[%clk 0:00:39.7]} 39... e2 {[%clk 0:01:44.8]}
0-1

[Event "*** Titled Tuesday Blitz"]
[Site "Chess.com"]
[Date "2019.04.02"]
[Round "3"]
[White "viggi38"]
[Black "Gabix_94"]
[Result "0-1"]
[WhiteElo "2596"]
[BlackElo "2576"]
[TimeControl "180+2"]
[EndTime "14:34:24 PDT"]
[Termination "Gabix_94 won on time"]

1. d4 {[%clk 0:03:01.7]} 1... Nf6 {[%clk 0:02:58.9]} 2. c4 {[%clk 0:03:03]} 2...
e6 {[%clk 0:03:00.3]} 3. g3 {[%clk 0:03:04.1]} 3... c5 {[%clk 0:03:01]} 4. d5
{[%clk 0:03:05.1]} 4... exd5 {[%clk 0:03:02.5]} 5. cxd5 {[%clk 0:03:07]} 5... b5
{[%clk 0:03:04]} 6. e4 {[%clk 0:02:59.4]} 6... Nxe4 {[%clk 0:03:04.8]} 7. Bg2
{[%clk 0:02:55.2]} 7... Nd6 {[%clk 0:03:04.5]} 8. Nf3 {[%clk 0:02:38.1]} 8...
Qe7+ {[%clk 0:03:05.5]} 9. Be3 {[%clk 0:02:37.4]} 9... Nc4 {[%clk 0:03:05]} 10.
O-O {[%clk 0:02:35.9]} 10... Nxe3 {[%clk 0:03:05.1]} 11. fxe3 {[%clk 0:02:37.2]}
11... d6 {[%clk 0:03:07]} 12. e4 {[%clk 0:02:35]} 12... Nd7 {[%clk 0:03:06.8]}
13. e5 {[%clk 0:02:34.4]} 13... dxe5 {[%clk 0:02:54.8]} 14. d6 {[%clk
0:02:34.5]} 14... Qxd6 {[%clk 0:02:54.4]} 15. Qxd6 {[%clk 0:02:28.2]} 15... Bxd6
{[%clk 0:02:56.3]} 16. Ng5 {[%clk 0:02:29.4]} 16... Be7 {[%clk 0:02:31]} 17.
Nxf7 {[%clk 0:02:08.8]} 17... Rf8 {[%clk 0:02:32]} 18. Bxa8 {[%clk 0:02:05.5]}
18... Rxf7 {[%clk 0:02:33]} 19. Rxf7 {[%clk 0:02:03.5]} 19... Kxf7 {[%clk
0:02:34.9]} 20. Nc3 {[%clk 0:01:57.9]} 20... a6 {[%clk 0:02:26.6]} 21. Bd5+
{[%clk 0:01:49.7]} 21... Ke8 {[%clk 0:02:26]} 22. Re1 {[%clk 0:01:45]} 22... c4
{[%clk 0:02:22.1]} 23. Bc6 {[%clk 0:01:42.1]} 23... Bc5+ {[%clk 0:02:22.9]} 24.
Kg2 {[%clk 0:01:42.7]} 24... Bd4 {[%clk 0:02:22.4]} 25. Ne4 {[%clk 0:01:12.6]}
25... Ke7 {[%clk 0:02:21.7]} 26. b3 {[%clk 0:01:07.3]} 26... c3 {[%clk
0:02:21.1]} 27. b4 {[%clk 0:01:05.7]} 27... Nf6 {[%clk 0:02:19.1]} 28. Nf2
{[%clk 0:00:39.4]} 28... Be6 {[%clk 0:02:16.4]} 29. Bb7 {[%clk 0:00:26.4]} 29...
Bxa2 {[%clk 0:02:15.2]} 30. Bxa6 {[%clk 0:00:23.2]} 30... Bd5+ {[%clk
0:02:15.9]} 31. Kf1 {[%clk 0:00:23.5]} 31... Bc4+ {[%clk 0:02:13.6]} 32. Kg2
{[%clk 0:00:25]} 32... Kd6 {[%clk 0:02:11]} 33. Bb7 {[%clk 0:00:26.2]} 33... c2
{[%clk 0:02:08.6]} 34. Ne4+ {[%clk 0:00:20.4]} 34... Kc7 {[%clk 0:02:08]} 35.
Nxf6 {[%clk 0:00:20.4]} 35... Kxb7 {[%clk 0:02:09.1]} 0-1

[Event "*** Titled Tuesday Blitz"]
[Site "Chess.com"]
[Date "2019.04.02"]
[Round "3"]
[White "Superfelix"]
[Black "Cayse"]
[Result "0-1"]
[WhiteElo "2433"]
[BlackElo "2630"]
[TimeControl "180+2"]
[EndTime "14:34:26 PDT"]
[Termination "Cayse won by resignation"]

1. e4 {[%clk 0:03:01.9]} 1... e5 {[%clk 0:03:00.6]} 2. Nf3 {[%clk 0:03:01.9]}
2... Nc6 {[%clk 0:03:01.6]} 3. d4 {[%clk 0:03:03.4]} 3... exd4 {[%clk
0:03:01.7]} 4. Nxd4 {[%clk 0:03:04.5]} 4... Nf6 {[%clk 0:03:02.9]} 5. Nc3 {[%clk
0:03:04.8]} 5... Bb4 {[%clk 0:03:03.2]} 6. Nxc6 {[%clk 0:03:05.1]} 6... bxc6
{[%clk 0:03:05.1]} 7. Bd3 {[%clk 0:03:06.5]} 7... O-O {[%clk 0:03:06.1]} 8. O-O
{[%clk 0:03:07.3]} 8... Re8 {[%clk 0:03:07.1]} 9. Qf3 {[%clk 0:03:07]} 9... Rb8
{[%clk 0:03:03.2]} 10. h3 {[%clk 0:03:07.1]} 10... Bd6 {[%clk 0:02:59.4]} 11. b3
{[%clk 0:03:00.1]} 11... Be5 {[%clk 0:02:59.9]} 12. Bb2 {[%clk 0:02:57.5]} 12...
d6 {[%clk 0:02:58.3]} 13. Na4 {[%clk 0:02:54.8]} 13... Nd7 {[%clk 0:02:54.8]}
14. Rad1 {[%clk 0:02:45.6]} 14... c5 {[%clk 0:02:48.9]} 15. Rfe1 {[%clk
0:02:35.3]} 15... Qe7 {[%clk 0:02:43.3]} 16. Bxe5 {[%clk 0:02:28.3]} 16... Nxe5
{[%clk 0:02:43.7]} 17. Qg3 {[%clk 0:02:29.2]} 17... Qf6 {[%clk 0:02:34.3]} 18.
f4 {[%clk 0:02:24.9]} 18... Nxd3 {[%clk 0:02:27.6]} 19. cxd3 {[%clk 0:02:25.6]}
19... Bd7 {[%clk 0:02:24.6]} 20. e5 {[%clk 0:02:21.8]} 20... Qf5 {[%clk
0:02:11.5]} 21. Nc3 {[%clk 0:02:20.8]} 21... Bc6 {[%clk 0:02:12.6]} 22. Ne4
{[%clk 0:02:11.7]} 22... dxe5 {[%clk 0:02:11.5]} 23. fxe5 {[%clk 0:02:07.8]}
23... Qxe5 {[%clk 0:02:09.2]} 24. Qxe5 {[%clk 0:01:49.4]} 24... Rxe5 {[%clk
0:02:11.1]} 25. Nd2 {[%clk 0:01:41.7]} 25... Rbe8 {[%clk 0:02:11]} 26. Rxe5
{[%clk 0:01:35.3]} 26... Rxe5 {[%clk 0:02:12.9]} 27. Kf2 {[%clk 0:01:35.8]}
27... Rf5+ {[%clk 0:02:12.6]} 28. Kg1 {[%clk 0:01:34.6]} 28... Rd5 {[%clk
0:02:09.5]} 29. Nc4 {[%clk 0:01:26.3]} 29... h5 {[%clk 0:02:05]} 30. Ne3 {[%clk
0:01:20.9]} 30... Rd4 {[%clk 0:01:59.3]} 31. Nf5 {[%clk 0:01:20.9]} 31... Rd7
{[%clk 0:02:00.2]} 32. Rc1 {[%clk 0:01:13.5]} 32... Bb5 {[%clk 0:02:01]} 33.
Rxc5 {[%clk 0:01:09.4]} 33... Bxd3 {[%clk 0:02:01.8]} 34. Ne3 {[%clk 0:01:09.9]}
34... g6 {[%clk 0:02:02.5]} 35. Ra5 {[%clk 0:01:10.8]} 35... c6 {[%clk
0:02:02.8]} 36. Kf2 {[%clk 0:01:06.8]} 36... Be4 {[%clk 0:02:03.4]} 37. Ke2
{[%clk 0:01:05.4]} 37... h4 {[%clk 0:01:59.9]} 38. Ng4 {[%clk 0:01:00.1]} 38...
Kg7 {[%clk 0:01:58]} 39. Ne3 {[%clk 0:00:57.9]} 39... f5 {[%clk 0:01:58.2]} 40.
a4 {[%clk 0:00:51.3]} 40... f4 {[%clk 0:01:54.8]} 41. Ng4 {[%clk 0:00:51]} 41...
Bxg2 {[%clk 0:01:55.3]} 42. Ne5 {[%clk 0:00:51.8]} 42... Re7 {[%clk 0:01:46.8]}
43. Kf2 {[%clk 0:00:52.7]} 43... Bd5 {[%clk 0:01:47.4]} 44. b4 {[%clk
0:00:50.3]} 44... Rxe5 {[%clk 0:01:47.7]} 0-1

[Event "*** Titled Tuesday Blitz"]
[Site "Chess.com"]
[Date "2019.04.02"]
[Round "3"]
[White "Zavgorodniy_Serg"]
[Black "Tiqr777"]
[Result "0-1"]
[WhiteElo "2460"]
[BlackElo "2641"]
[TimeControl "180+2"]
[EndTime "14:34:34 PDT"]
[Termination "Tiqr777 won by resignation"]

1. e4 {[%clk 0:03:01.9]} 1... e5 {[%clk 0:02:58]} 2. Nf3 {[%clk 0:02:55.5]} 2...
Nc6 {[%clk 0:02:53.9]} 3. Bb5 {[%clk 0:02:56]} 3... a6 {[%clk 0:02:54.4]} 4.
Bxc6 {[%clk 0:02:56.5]} 4... dxc6 {[%clk 0:02:54.3]} 5. O-O {[%clk 0:02:58.4]}
5... Bg4 {[%clk 0:02:54.1]} 6. h3 {[%clk 0:02:54.9]} 6... Bxf3 {[%clk
0:02:53.7]} 7. Qxf3 {[%clk 0:02:55.3]} 7... Nf6 {[%clk 0:02:53]} 8. d3 {[%clk
0:02:55.3]} 8... h6 {[%clk 0:02:48.7]} 9. Qg3 {[%clk 0:02:42.2]} 9... Qe7 {[%clk
0:02:35.9]} 10. f4 {[%clk 0:02:41]} 10... Nh5 {[%clk 0:02:32.2]} 11. Qg4 {[%clk
0:02:39]} 11... Nxf4 {[%clk 0:02:32.2]} 12. Bxf4 {[%clk 0:02:38.9]} 12... exf4
{[%clk 0:02:33.7]} 13. Rxf4 {[%clk 0:02:35.9]} 13... g5 {[%clk 0:02:26]} 14. Rf2
{[%clk 0:02:13.7]} 14... Bg7 {[%clk 0:02:26.1]} 15. c3 {[%clk 0:02:14.3]} 15...
Qe6 {[%clk 0:02:11.9]} 16. Qxe6+ {[%clk 0:02:08.4]} 16... fxe6 {[%clk
0:02:13.5]} 17. d4 {[%clk 0:02:09.1]} 17... Ke7 {[%clk 0:02:12]} 18. Nd2 {[%clk
0:02:09.4]} 18... Rhf8 {[%clk 0:02:12.6]} 19. Raf1 {[%clk 0:02:04.3]} 19... Rxf2
{[%clk 0:02:12.7]} 20. Rxf2 {[%clk 0:02:05.6]} 20... Rd8 {[%clk 0:02:13.1]} 21.
Nb3 {[%clk 0:01:46.5]} 21... b6 {[%clk 0:02:13.7]} 22. Rd2 {[%clk 0:01:21.6]}
22... Rf8 {[%clk 0:02:05.1]} 23. Rf2 {[%clk 0:01:21.5]} 23... Rd8 {[%clk
0:01:52.8]} 24. Kf1 {[%clk 0:01:22.6]} 24... a5 {[%clk 0:01:45.9]} 25. a4 {[%clk
0:01:18.5]} 25... e5 {[%clk 0:01:46.2]} 26. Rd2 {[%clk 0:01:14.7]} 26... exd4
{[%clk 0:01:46.6]} 27. Nxd4 {[%clk 0:01:15.1]} 27... Bxd4 {[%clk 0:01:42.5]} 28.
cxd4 {[%clk 0:01:14.5]} 28... c5 {[%clk 0:01:37.5]} 29. d5 {[%clk 0:01:15.6]}
29... Kd6 {[%clk 0:01:37.7]} 30. Ke2 {[%clk 0:01:06.1]} 30... Ke5 {[%clk
0:01:38.3]} 31. Kd3 {[%clk 0:01:02.5]} 31... Rf8 {[%clk 0:01:36]} 32. Re2 {[%clk
0:00:59.6]} 32... Rf4 {[%clk 0:01:35.6]} 33. g3 {[%clk 0:00:48.4]} 33... c4+
{[%clk 0:01:20.7]} 0-1

[Event "*** Titled Tuesday Blitz"]
[Site "Chess.com"]
[Date "2019.04.02"]
[Round "3"]
[White "sergeikim"]
[Black "Kirill_Klukin"]
[Result "1-0"]
[WhiteElo "2580"]
[BlackElo "2591"]
[TimeControl "180+2"]
[EndTime "14:34:35 PDT"]
[Termination "sergeikim won by resignation"]

1. d4 {[%clk 0:03:01.9]} 1... Nf6 {[%clk 0:03:00.5]} 2. c4 {[%clk 0:03:02.9]}
2... Nc6 {[%clk 0:03:01.2]} 3. Nc3 {[%clk 0:03:02.6]} 3... e6 {[%clk 0:03:01.7]}
4. a3 {[%clk 0:03:00.5]} 4... d6 {[%clk 0:03:02.5]} 5. g3 {[%clk 0:03:00.4]}
5... g6 {[%clk 0:03:03.8]} 6. Bg2 {[%clk 0:03:01.3]} 6... Bg7 {[%clk 0:03:05.4]}
7. e3 {[%clk 0:02:51.8]} 7... O-O {[%clk 0:03:06.1]} 8. Nge2 {[%clk 0:02:50.1]}
8... e5 {[%clk 0:03:05.3]} 9. O-O {[%clk 0:02:47.4]} 9... h5 {[%clk 0:02:58]}
10. h3 {[%clk 0:02:42.7]} 10... Bf5 {[%clk 0:02:52.9]} 11. d5 {[%clk 0:02:39.2]}
11... Ne7 {[%clk 0:02:53]} 12. e4 {[%clk 0:02:39.7]} 12... Bd7 {[%clk
0:02:47.8]} 13. Be3 {[%clk 0:02:32.8]} 13... Nh7 {[%clk 0:02:34.1]} 14. Qd2
{[%clk 0:02:32.1]} 14... c5 {[%clk 0:01:53.4]} 15. dxc6 {[%clk 0:02:24.4]} 15...
Bxc6 {[%clk 0:01:54.1]} 16. Bh6 {[%clk 0:02:20.3]} 16... Qb6 {[%clk 0:01:48.3]}
17. Bxg7 {[%clk 0:02:15.4]} 17... Kxg7 {[%clk 0:01:50.2]} 18. Qxd6 {[%clk
0:02:12.4]} 18... Rfe8 {[%clk 0:01:27.3]} 19. Qb4 {[%clk 0:02:01.1]} 19... Qc7
{[%clk 0:01:07.3]} 20. Nd5 {[%clk 0:01:57]} 20... Bxd5 {[%clk 0:01:07.9]} 21.
cxd5 {[%clk 0:01:57.9]} 21... a5 {[%clk 0:01:03.6]} 22. Qd2 {[%clk 0:01:55.7]}
22... Red8 {[%clk 0:01:01.5]} 23. Rac1 {[%clk 0:01:50.2]} 23... Qb6 {[%clk
0:01:02.5]} 24. Nc3 {[%clk 0:01:40.4]} 24... Nf6 {[%clk 0:01:02.9]} 25. Qg5
{[%clk 0:01:31.7]} 25... Qd6 {[%clk 0:00:53.2]} 26. Nb5 {[%clk 0:01:30.4]} 26...
Qb8 {[%clk 0:00:39.2]} 27. Nc7 {[%clk 0:01:17.1]} 27... Ra7 {[%clk 0:00:40]} 28.
Qxe5 {[%clk 0:01:17.1]} 28... Ng8 {[%clk 0:00:39.6]} 29. d6 {[%clk 0:01:11.9]}
29... b5 {[%clk 0:00:39.8]} 30. Rfd1 {[%clk 0:01:08]} 30... Rb7 {[%clk
0:00:38.8]} 31. Qd4 {[%clk 0:01:05.6]} 31... Kh7 {[%clk 0:00:34.6]} 32. e5
{[%clk 0:01:05.4]} 32... Nd7 {[%clk 0:00:36.1]} 33. Bxb7 {[%clk 0:01:02]} 1-0

[Event "*** Titled Tuesday Blitz"]
[Site "Chess.com"]
[Date "2019.04.02"]
[Round "3"]
[White "GrigorGrigorov"]
[Black "StephenDedalus83"]
[Result "1-0"]
[WhiteElo "2717"]
[BlackElo "2652"]
[TimeControl "180+2"]
[EndTime "14:34:39 PDT"]
[Termination "GrigorGrigorov won by resignation"]

1. Nf3 {[%clk 0:03:01.9]} 1... c5 {[%clk 0:02:59.5]} 2. c4 {[%clk 0:03:00.3]}
2... Nc6 {[%clk 0:03:00]} 3. e3 {[%clk 0:02:59.7]} 3... e5 {[%clk 0:03:00]} 4.
Nc3 {[%clk 0:02:52.7]} 4... Nf6 {[%clk 0:03:00.4]} 5. d4 {[%clk 0:02:52.7]} 5...
e4 {[%clk 0:02:56.9]} 6. d5 {[%clk 0:02:32.7]} 6... exf3 {[%clk 0:02:57.2]} 7.
dxc6 {[%clk 0:02:33.8]} 7... fxg2 {[%clk 0:02:57.6]} 8. cxd7+ {[%clk 0:02:31.4]}
8... Qxd7 {[%clk 0:02:58.4]} 9. Qxd7+ {[%clk 0:02:29.3]} 9... Bxd7 {[%clk
0:02:59.3]} 10. Bxg2 {[%clk 0:02:30.3]} 10... O-O-O {[%clk 0:03:00.6]} 11. b3
{[%clk 0:02:22.2]} 11... Bd6 {[%clk 0:03:00.7]} 12. Bb2 {[%clk 0:02:15.1]} 12...
Rhe8 {[%clk 0:02:59.9]} 13. O-O-O {[%clk 0:02:09.3]} 13... Be5 {[%clk
0:02:54.6]} 14. h3 {[%clk 0:02:05]} 14... Kc7 {[%clk 0:02:48]} 15. Rd2 {[%clk
0:02:00.9]} 15... Bxc3 {[%clk 0:02:03.3]} 16. Bxc3 {[%clk 0:01:59]} 16... Bc6
{[%clk 0:02:04.8]} 17. Bxc6 {[%clk 0:01:49.6]} 17... Kxc6 {[%clk 0:02:05.5]} 18.
Bxf6 {[%clk 0:01:36.6]} 18... gxf6 {[%clk 0:01:54.9]} 19. Rxd8 {[%clk
0:01:36.5]} 19... Rxd8 {[%clk 0:01:55.6]} 20. Rg1 {[%clk 0:01:37.7]} 20... f5
{[%clk 0:01:55.3]} 21. Rg7 {[%clk 0:01:34.3]} 21... f4 {[%clk 0:01:56.4]} 22.
Rxf7 {[%clk 0:01:11.1]} 22... fxe3 {[%clk 0:01:56.5]} 23. fxe3 {[%clk
0:01:11.8]} 23... Rd3 {[%clk 0:01:57.3]} 24. Re7 {[%clk 0:01:12.8]} 24... b5
{[%clk 0:01:44.9]} 25. Kc2 {[%clk 0:01:12]} 25... bxc4 {[%clk 0:01:45.6]} 26.
bxc4 {[%clk 0:01:05.7]} 26... Ra3 {[%clk 0:01:46.4]} 27. Kb2 {[%clk 0:00:54]}
27... Rd3 {[%clk 0:01:47.2]} 28. Rxa7 {[%clk 0:00:52.4]} 28... Rxe3 {[%clk
0:01:47.6]} 29. Rxh7 {[%clk 0:00:52.5]} 29... Re4 {[%clk 0:01:43.3]} 30. Kb3
{[%clk 0:00:49.2]} 30... Re3+ {[%clk 0:01:43.7]} 31. Ka4 {[%clk 0:00:49.7]}
31... Re2 {[%clk 0:01:41.8]} 32. Rh6+ {[%clk 0:00:49.7]} 32... Kc7 {[%clk
0:01:41.7]} 33. Kb5 {[%clk 0:00:51.1]} 33... Rxa2 {[%clk 0:01:42.5]} 34. Kxc5
{[%clk 0:00:52.3]} 34... Ra5+ {[%clk 0:01:43.2]} 35. Kb4 {[%clk 0:00:53]} 35...
Rg5 {[%clk 0:01:44]} 36. h4 {[%clk 0:00:53.5]} 36... Rg4 {[%clk 0:01:43.7]} 37.
h5 {[%clk 0:00:54]} 37... Rg5 {[%clk 0:01:44.1]} 38. Rh8 {[%clk 0:00:54.9]}
38... Kb7 {[%clk 0:01:44.4]} 39. h6 {[%clk 0:00:56.1]} 39... Rh5 {[%clk
0:01:45.1]} 40. h7 {[%clk 0:00:57.2]} 40... Ka7 {[%clk 0:01:45.4]} 41. c5 {[%clk
0:00:58]} 41... Kb7 {[%clk 0:01:44.8]} 42. c6+ {[%clk 0:00:56.8]} 42... Kc7
{[%clk 0:01:45.3]} 43. Ra8 {[%clk 0:00:57.3]} 43... Rh4+ {[%clk 0:01:40.5]} 44.
Kb3 {[%clk 0:00:57.7]} 44... Rh3+ {[%clk 0:01:36.7]} 45. Kc2 {[%clk 0:00:58.4]}
45... Rh2+ {[%clk 0:01:37.2]} 46. Kd3 {[%clk 0:00:59.3]} 46... Rxh7 {[%clk
0:01:37.6]} 47. Ra7+ {[%clk 0:00:59.4]} 1-0